Organisation Name,Organisation Code,Organisational Unit,Service Category Label,Procurement Category,Supplier Name,Supplier Other ID,Payment Date,Transaction Number,Amount (�),Purpose
Eden District Council,http://opendatacommunities.org/id/district-council/eden,Transformation & Customers Head of,Central Expenses,Postages,CUMBRIA MAILING SERVICES LTD,CUM011,10/12/2021,198841,1224.8,ROYAL MAIL POSTAGE
Eden District Council,http://opendatacommunities.org/id/district-council/eden,Legal Services Manager,Emergency Planning and Works,Advertising,BARRNON MEDIA LTD,CUM001,10/12/2021,198850,500,COVID AD 20.11.21
Eden District Council,http://opendatacommunities.org/id/district-council/eden,Technical Services Manager,Administrative Buildings,Planned Maintenance,ASKINS & LITTLE STONEMASONRY SPECIALISTS,ASK005,10/12/2021,198894,1045,REPAIR STONE BALUSTRADE 13.10.21
Eden District Council,http://opendatacommunities.org/id/district-council/eden,Environmental Services,1996 Mandatory Renovation Grants,Capital grants,C W COX & SONS (KENDAL)  LTD,COX001,10/12/2021,198898,3945,INT PAYMENT GRANT REF 210021
Eden District Council,http://opendatacommunities.org/id/district-council/eden,Human Resources Manager,Staff Development,Training Expenses,THE PLAY INSPECTION COMPANY LIMITED,PLA013,10/12/2021,198904,610,TRAINING/EXAM OPERATIONAL INSPECTORS
Eden District Council,http://opendatacommunities.org/id/district-council/eden,Environmental Services,1996 Mandatory Renovation Grants,Capital grants,MICHAEL THOMPSON (PWCE) LTD,MIC011,10/12/2021,198919,4020,FIN PAYMENT GRANT REF 210023
Eden District Council,http://opendatacommunities.org/id/district-council/eden,Technical Services Manager,Provision of Ameneties,Litter bins,WYBONE LTD,WYB001,10/12/2021,198920,517.49,LITTER BIN
Eden District Council,http://opendatacommunities.org/id/district-council/eden,Environmental Services,1996 Mandatory Renovation Grants,Capital grants,TK ACCESS SOLUTIONS LTD,THY001,10/12/2021,198922,1710,FIN PAYMENT GRANT REF 210047
Eden District Council,http://opendatacommunities.org/id/district-council/eden,Human Resources Manager,Central Expenses,Advertising,REDACTIVE PUBLISHING LIMITED,RED006,10/12/2021,198929,995,16.11.21 JOB LISTING / LOGO
Eden District Council,http://opendatacommunities.org/id/district-council/eden,Technical Services Manager,Parks and Open Spaces,Ground Maintenance SOR & Dayworks,NORTH WEST ARBORICULTURAL SERVICES LTD,NOR066,10/12/2021,198939,726.5,HEDGE PLANTING GILWILLY
Eden District Council,http://opendatacommunities.org/id/district-council/eden,Transformation & Customers Head of,Emergency Planning and Works,Advertising,BARRNON MEDIA LTD,CUM001,10/12/2021,198942,500,COVID AD 27.11.21
Eden District Council,http://opendatacommunities.org/id/district-council/eden,Legal Services Manager,Register of Electors,Equipment � maintenance,THE DOCUMENT MANAGEMENT GROUP LTD,DOC002,10/12/2021,199006,1700,12 MONTH CONTRACT KODAK SCANNER
Eden District Council,http://opendatacommunities.org/id/district-council/eden,Technical Services Manager,Eden Leisure Centre & Appleby Swimming P,Building Maintenance - Leisure,SHAUN BELL ELECTRICAL LTD,SHA036,10/12/2021,199015,7030,REMEDIAL REPAIRS PENRITH LEISURE
Eden District Council,http://opendatacommunities.org/id/district-council/eden,Legal Services Manager,Committee and Member Costs,Equipment hire,SOUNDSMITH LIMITED,SOU021,10/12/2021,199023,1800,SOUND EQUIP NORTH LAKES
Eden District Council,http://opendatacommunities.org/id/district-council/eden,Environmental Services,1996 Mandatory Renovation Grants,Capital grants,D RICHARDSON SURFACING CONTRACTORS,RIC026,10/12/2021,198824,5448,FIN PAYMENT GRANT REF 200076
Eden District Council,http://opendatacommunities.org/id/district-council/eden,Financial Services Manager,Financial Services,Agency Staff,CASTLEFIELD RECRUITMENT LTD,CAS016,10/12/2021,199020,1638,TIME SHEET WE 14.11.21
Eden District Council,http://opendatacommunities.org/id/district-council/eden,Commercial Services Manager,Emergency Planning and Works,Grants and contributions,GREENWICH LEISURE LTD,NCL001,10/12/2021,197518,14526.18,nat leisure rec fund - dec20-feb21
Eden District Council,http://opendatacommunities.org/id/district-council/eden,Technical Services Manager,Eden Leisure Centre & Appleby Swimming P,Additional covid costs provision,GREENWICH LEISURE LTD,NCL001,10/12/2021,197519,17341.83,nat leisure recovery fund -mar21-jun21
Eden District Council,http://opendatacommunities.org/id/district-council/eden,Commercial Services Manager,Economic Development and Promotion,Grants and contributions,G BOWMAN BUILDING CONTRACTORS LTD,BOW014,10/12/2021,198896,1000,FINAL APPRENTICE PAYMENT SR
Eden District Council,http://opendatacommunities.org/id/district-council/eden,Financial Services Manager,Financial Services,Internal Audit,TIAA LTD,TIA001,10/12/2021,198897,4875,21/22 MAIN ACCOUNT SYSTEMS
Eden District Council,http://opendatacommunities.org/id/district-council/eden,Technical Services Manager,Administrative Buildings,Water charges � unmetered,WATER PLUS,UNI008,10/12/2021,198906,3816.52,MANSION HOUSE 22.8.21-23.11.21
Eden District Council,http://opendatacommunities.org/id/district-council/eden,Financial Services Manager,Heart of Cumbria,Professional fees,WALTON GOODLAND LTD,WAL008,10/12/2021,198910,750,COST ASSESSMENT CARLETON MEADOWS
Eden District Council,http://opendatacommunities.org/id/district-council/eden,Technical Services Manager,Public Conveniences,Water charges � metered,WATER PLUS,UNI008,10/12/2021,198921,1352.12,PCS BLUEBELL 22.8.21-16.11.21
Eden District Council,http://opendatacommunities.org/id/district-council/eden,Technical Services Manager,Recycling,Em Wks Storage,URBASER LIMITED,URB002,10/12/2021,198962,582.37,CERT NO M-M&EW 116/2021
Eden District Council,http://opendatacommunities.org/id/district-council/eden,Technical Services Manager,Refuse Collection,Refuse Contract Dayworks,URBASER LIMITED,URB002,10/12/2021,199016,1815.15,CERT RC107
Eden District Council,http://opendatacommunities.org/id/district-council/eden,Commercial Services Manager,Economic Development and Promotion,Grants and contributions,I J CURRY & SON LTD,CUR010,10/12/2021,199017,1000,1st apprentice payment tb
Eden District Council,http://opendatacommunities.org/id/district-council/eden,Legal Services Manager,Land Management,Building Maintenance,METAL STAR,MET022,17/12/2021,199012,590,FIT HANDRAILS APPLEBY
Eden District Council,http://opendatacommunities.org/id/district-council/eden,Information Technology Manager,Information Technology,Software � maintenance,PHOENIX SOFTWARE LTD,PHO001,17/12/2021,199039,4525,SYMANTEC CLOUD SERVICE SUBSCRIPTION
Eden District Council,http://opendatacommunities.org/id/district-council/eden,Financial Services Manager,Corporate Costs,Audit fee,GRANT THORNTON UK LLP,THO026,17/12/2021,199066,9699,EXT AUDIT 2 OF 4 FEES
Eden District Council,http://opendatacommunities.org/id/district-council/eden,Technical Services Manager,Administrative Buildings,Planned Maintenance,RICHARDSON & STARLING,RIC013,17/12/2021,199076,3028,GUARENTEED RISING DAMP
Eden District Council,http://opendatacommunities.org/id/district-council/eden,Environmental Services,1996 Mandatory Renovation Grants,Capital grants,DAY CUMMINS LTD,DAY002,17/12/2021,198846,1260,INT PAYMENT GRANT REF 210029
Eden District Council,http://opendatacommunities.org/id/district-council/eden,Planning Policy Manager,Local Plans & Policy,Professional fees,PENRITH FARMERS & KIDD PLC,PFK001,17/12/2021,198889,4000,MONITORING REPORT2019/2020
Eden District Council,http://opendatacommunities.org/id/district-council/eden,Environmental Services,Environmental Services,Agency Staff,VIVID RESOURCING,VIV001,17/12/2021,198890,1480,TIME SHEET WE 21.11.21 BN
Eden District Council,http://opendatacommunities.org/id/district-council/eden,Legal Services Manager,Land Management,Planned Maintenance,G C A GARDENING SERVICES,GCA001,17/12/2021,198905,650,REPAIR FENCE KIRKBY STPEHEN
Eden District Council,http://opendatacommunities.org/id/district-council/eden,Commercial Services Manager,Commercial Services,Agency Staff,VIVID RESOURCING,VIV001,17/12/2021,198907,4375,TIME SHEET WE 21.11.21 FM
Eden District Council,http://opendatacommunities.org/id/district-council/eden,Commercial Services Manager,Commercial Services,Agency Staff,VIVID RESOURCING,VIV001,17/12/2021,198908,2750,TIME SHEET WE 21.11.21 GM
Eden District Council,http://opendatacommunities.org/id/district-council/eden,Planning Services,Planning Services,Agency Staff,SUMMIT TOWN PLANNING LTD,SUM004,17/12/2021,198909,1625.1,15 PLANNING APP NOV 21
Eden District Council,http://opendatacommunities.org/id/district-council/eden,Financial Services Manager,Financial Services,Agency Staff,CASTLEFIELD RECRUITMENT LTD,CAS016,17/12/2021,198917,1872,TIME SHEET WE 21.11.21 SB
Eden District Council,http://opendatacommunities.org/id/district-council/eden,Environmental Services,1996 Mandatory Renovation Grants,Capital grants,TOP NOTCH CONTRACTORS LTD,TOP003,17/12/2021,198918,12306,FIN PAYMENT GRANT REF 200071
Eden District Council,http://opendatacommunities.org/id/district-council/eden,Commercial Services Manager,Commercial Services,Agency Staff,VIVID RESOURCING,VIV001,17/12/2021,198949,2750,TIME SHEET WE 28.11.21GM
Eden District Council,http://opendatacommunities.org/id/district-council/eden,Environmental Services,Environmental Services,Agency Staff,VIVID RESOURCING,VIV001,17/12/2021,198950,1170,TIME SHEET WE 28.11.21 BN
Eden District Council,http://opendatacommunities.org/id/district-council/eden,Commercial Services Manager,Commercial Services,Agency Staff,VIVID RESOURCING,VIV001,17/12/2021,198952,4375,TIME SHEET WE 28.11.21 FM
Eden District Council,http://opendatacommunities.org/id/district-council/eden,Chief Executive's,Chief Executive,Agency Staff,CIPFA PENNA,CIP013,17/12/2021,198970,25960,INTERIM MANAGEMENT IF  NOV21
Eden District Council,http://opendatacommunities.org/id/district-council/eden,Financial Services Manager,Financial Services,Agency Staff,CIPFA PENNA,CIP013,17/12/2021,198971,15567.75,INTERIM MANAGMENT DB NOV21
Eden District Council,http://opendatacommunities.org/id/district-council/eden,Corporate Services Director,Director of Corporate Services,Agency Staff,CIPFA PENNA,CIP013,17/12/2021,198972,18920,INTERIM MANAGEMENT PS NOV 21
Eden District Council,http://opendatacommunities.org/id/district-council/eden,Planning Services,Environmental Enhancement & Conservation,Professional fees,CAPITA PROPERTY & INFRASTRUCTURE LTD,CAP002,17/12/2021,199010,3932.52,ARBORICULTURAL SERVICES OCT AND NOV 21
Eden District Council,http://opendatacommunities.org/id/district-council/eden,Financial Services Manager,Financial Services,Agency Staff,CASTLEFIELD RECRUITMENT LTD,CAS016,17/12/2021,199031,1872,TIME SHEET SB 28.11.21
Eden District Council,http://opendatacommunities.org/id/district-council/eden,Financial Services Manager,Financial Services,Balance Sheet entry BS,GREENWICH LEISURE LTD,NCL001,17/12/2021,198020,11113.76,AUG21 MANAGEMENT FEE
Eden District Council,http://opendatacommunities.org/id/district-council/eden,Information Technology Manager,Information Technology,IT Contracts & Maintenance,MLL TELECOM LTD,MLL001,17/12/2021,198468,3705.75,EDC AND MH 1.10.21-31.12.21
Eden District Council,http://opendatacommunities.org/id/district-council/eden,Technical Services Manager,Cemeteries,Rental/Maintenance of Security System,CHUBB ELECTRONIC SECURITY,CHU001,17/12/2021,198694,1371.92,ALARM 23.1.22-22.1.23
Eden District Council,http://opendatacommunities.org/id/district-council/eden,Technical Services Manager,Arts and Leisure,Grants and contributions,EDEN ARTS LTD,EDE013,17/12/2021,198832,17500,PROJECT 440 FUNDING 2ND IMSTALLMENT
Eden District Council,http://opendatacommunities.org/id/district-council/eden,Technical Services Manager,Central Expenses,Other charges for services,CARLISLE CITY COUNCIL,CAR015,17/12/2021,198893,11250,H&S ADVICE 1.4.21 TO 30.11.21
Eden District Council,http://opendatacommunities.org/id/district-council/eden,Information Technology Manager,Information Technology,IT Contracts & Maintenance,IT PROFESSIONAL SERVICES LTD,ITP001,17/12/2021,198963,600,AGREEMENT 013 DATACENTRE IPS
Eden District Council,http://opendatacommunities.org/id/district-council/eden,Planning Services,Planning Services,Agency Staff,G2 RECRUITMENT SOLUTIONS,G2R001,17/12/2021,198968,860,TIME SHEET WE 14.11.21 AND 21.11.21  AA
Eden District Council,http://opendatacommunities.org/id/district-council/eden,Financial Services Manager,Financial Services,Balance Sheet entry BS,GREENWICH LEISURE LTD,NCL001,17/12/2021,199024,11113.76,MANAGMENT FEE SEPT21
Eden District Council,http://opendatacommunities.org/id/district-council/eden,Financial Services Manager,Financial Services,Balance Sheet entry BS,GREENWICH LEISURE LTD,NCL001,17/12/2021,199025,11113.76,MANAGEMENT FEE OCT21
Eden District Council,http://opendatacommunities.org/id/district-council/eden,Financial Services Manager,Financial Services,Balance Sheet entry BS,GREENWICH LEISURE LTD,NCL001,17/12/2021,199026,11113.76,MANAGMENT FEE NOV21
Eden District Council,http://opendatacommunities.org/id/district-council/eden,Technical Services Manager,Land Management,Building works,2030 ARCHITECTS,ARC011,17/12/2021,199036,4916.25,TIME CHARGE 3RD PLAN APP 31.8.21-29.10.2
Eden District Council,http://opendatacommunities.org/id/district-council/eden,Technical Services Manager,Administrative Buildings,Electricity,NPOWER LTD,NPO001,17/12/2021,199059,681.28,MH 1.11.21-30.11.21
Eden District Council,http://opendatacommunities.org/id/district-council/eden,Technical Services Manager,Administrative Buildings,Rental/Maintenance of Security System,CHUBB ELECTRONIC SECURITY,CHU001,17/12/2021,199079,1338.21,INTRUDER ALARM 29.1.22-28.1.23
Eden District Council,http://opendatacommunities.org/id/district-council/eden,Technical Services Manager,Recycling,Recycling - Garden Waste,CUMBRIA WASTE RECYCLING LTD,CUM022,17/12/2021,199094,35558.86,CERT GW-8-21/22
Eden District Council,http://opendatacommunities.org/id/district-council/eden,Environmental Services,Water Sampling,Professional fees,UNITED UTILITIES WATER PLC,UNI024,17/12/2021,198913,1063.06,INCOME LABS OCT21
Eden District Council,http://opendatacommunities.org/id/district-council/eden,Technical Services Manager,Land Management,Gas,TOTAL GAS AND POWER LTD,TOT005,17/12/2021,199029,571.33,AGE CONCERN
Eden District Council,http://opendatacommunities.org/id/district-council/eden,Environmental Services,Pest Control,Pest Control,RENTOKIL INITIAL PEST CONTROL,REN009,17/12/2021,199033,1023.69,PESTS MISC 1.1.22-31.01.22
Eden District Council,http://opendatacommunities.org/id/district-council/eden,Technical Services Manager,Public Conveniences,Water testing,MITIE,REN007,17/12/2021,199035,549.43,SERVICES 1.12.2-31.12.21
Eden District Council,http://opendatacommunities.org/id/district-council/eden,Technical Services Manager,Administrative Buildings,Electricity,NPOWER LTD,NPO001,17/12/2021,199060,1247.2,TH 1.11.21-30.11.21
Eden District Council,http://opendatacommunities.org/id/district-council/eden,Technical Services Manager,Footway Lighting,Electricity,NPOWER LTD,NPO001,17/12/2021,199074,3547.82,MH ST LIGHTING 1.11.21-30.11.21
Eden District Council,http://opendatacommunities.org/id/district-council/eden,Technical Services Manager,Refuse Collection,Contract refuse collection,URBASER LIMITED,URB002,17/12/2021,198960,77659.26,CERT M-RC116
Eden District Council,http://opendatacommunities.org/id/district-council/eden,Environmental Services,Appleby Fair,Street Cleaning Contract,URBASER LIMITED,URB002,17/12/2021,198961,19004.92,CERT M-SC116
Eden District Council,http://opendatacommunities.org/id/district-council/eden,Technical Services Manager,Closed Church Yards,GM INSPECTIONS & MAINTENANCE,URBASER LIMITED,URB002,17/12/2021,199038,17408.82,CERT M-GM116
Eden District Council,http://opendatacommunities.org/id/district-council/eden,Environmental Services,Environmental Enforcement,Dog Contract O.O.H retainer,URBASER LIMITED,URB002,17/12/2021,199042,970.81,STRAY DOF NOV 21
Eden District Council,http://opendatacommunities.org/id/district-council/eden,Technical Services Manager,Cemeteries,ADHOC WORKS FOR BURIALS,URBASER LIMITED,URB002,17/12/2021,199046,1274.93,GM - BURIALS JUNE21
Eden District Council,http://opendatacommunities.org/id/district-council/eden,Technical Services Manager,Cemeteries,ADHOC WORKS FOR BURIALS,URBASER LIMITED,URB002,17/12/2021,199049,1238.26,GM BURIALS APRIL21
Eden District Council,http://opendatacommunities.org/id/district-council/eden,Technical Services Manager,Cemeteries,ADHOC WORKS FOR BURIALS,URBASER LIMITED,URB002,17/12/2021,199050,1471.88,GM BURIALS MAY21
Eden District Council,http://opendatacommunities.org/id/district-council/eden,Technical Services Manager,Cemeteries,ADHOC WORKS FOR BURIALS,URBASER LIMITED,URB002,17/12/2021,199078,1353.77,CERT GM190 APRIL21 AD HOC
Eden District Council,http://opendatacommunities.org/id/district-council/eden,Revenue/Benefits Manager,Revenue & Benefits,"Books, publications",SHELTER,SHE008,24/12/2021,199239,614.25,BOOK BUNDLES
Eden District Council,http://opendatacommunities.org/id/district-council/eden,Financial Services Manager,Heart of Cumbria,Professional fees,WALTON GOODLAND LTD,WAL008,24/12/2021,199255,1600,REPORT / VALUATION CARELTON MEADOWS
Eden District Council,http://opendatacommunities.org/id/district-council/eden,Planning Services,Planning Services,Agency Staff,G2 RECRUITMENT SOLUTIONS,G2R001,24/12/2021,199054,4920,"TIME SHEET WE 14.11.21,21.11.21,28.11.21 EP"
Eden District Council,http://opendatacommunities.org/id/district-council/eden,Commercial Services Manager,Commercial Services,Agency Staff,REDACTED INFORMATION,BAL010,24/12/2021,199063,2319,TEAM SUPPORT NOV21
Eden District Council,http://opendatacommunities.org/id/district-council/eden,Commercial Services Manager,Commercial Services,Agency Staff,VIVID RESOURCING,VIV001,24/12/2021,199070,4375,TIME SHEET WE FM 05.12.21
Eden District Council,http://opendatacommunities.org/id/district-council/eden,Environmental Services,1996 Mandatory Renovation Grants,Capital grants,TOP NOTCH CONTRACTORS LTD,TOP003,24/12/2021,199075,2070,FIN PAYMENT GRANT REF210074
Eden District Council,http://opendatacommunities.org/id/district-council/eden,Environmental Services,1996 Mandatory Renovation Grants,Capital grants,DAY CUMMINS LTD,DAY002,24/12/2021,199092,2478,ARCHITECT FEE GRANT REF 210068
Eden District Council,http://opendatacommunities.org/id/district-council/eden,Technical Services Manager,Administrative Buildings,Planned Maintenance,DYNAMIC JOINERY LTD,DYN004,24/12/2021,199141,900,PART PAYMENT RUBBISH DISPOSAL
Eden District Council,http://opendatacommunities.org/id/district-council/eden,Information Technology Manager,Central Expenses,Telephone,IT PROFESSIONAL SERVICES LTD,ITP001,24/12/2021,198964,5485.71,HOSTED SIP GATEWAY SERVICE
Eden District Council,http://opendatacommunities.org/id/district-council/eden,Technical Services Manager,Land Management,Building works,BAKER MALLETT LLP,BAK010,24/12/2021,199013,705,COST PLAN/ TENDER PROCESS NR12
Eden District Council,http://opendatacommunities.org/id/district-council/eden,Technical Services Manager,Land Management,Building works,BAKER MALLETT LLP,BAK010,24/12/2021,199014,2486,PROJECT MANAGER 1.11.21-30.11.21  NR11
Eden District Council,http://opendatacommunities.org/id/district-council/eden,Planning Services,Planning Services,Agency Staff,G2 RECRUITMENT SOLUTIONS,G2R001,24/12/2021,199055,559,time sheet we 05.12.21 aa
Eden District Council,http://opendatacommunities.org/id/district-council/eden,Commercial Services Manager,Tourism Promotion,Marketing,CUMBRIA TOURISM,CUM066,24/12/2021,199147,600,HOLIDAY GUIDE 1/2 PAGE
Eden District Council,http://opendatacommunities.org/id/district-council/eden,Technical Services Manager,Administrative Buildings,Gas,GAZPROM ENERGY,GAZ001,24/12/2021,199230,881.55,TH
Eden District Council,http://opendatacommunities.org/id/district-council/eden,Technical Services Manager,Administrative Buildings,Gas,GAZPROM ENERGY,GAZ001,24/12/2021,199238,560.52,MH
Eden District Council,http://opendatacommunities.org/id/district-council/eden,Commercial Services Manager,Economic Development and Promotion,Professional fees,WALTON GOODLAND LTD,WAL008,24/12/2021,198953,4578,RATE FOR SURVEYOR NOV21
Eden District Council,http://opendatacommunities.org/id/district-council/eden,Technical Services Manager,Cemeteries,Memorial Plaque Charges,URBASER LIMITED,URB002,24/12/2021,199149,1318.19,CERT GM193
Eden District Council,http://opendatacommunities.org/id/district-council/eden,Technical Services Manager,Cemeteries,ADHOC WORKS FOR BURIALS,URBASER LIMITED,URB002,24/12/2021,199150,774.66,CERT GM191
Eden District Council,http://opendatacommunities.org/id/district-council/eden,Technical Services Manager,Cemeteries,ADHOC WORKS FOR BURIALS,URBASER LIMITED,URB002,24/12/2021,199151,1061.5,CERT GM192
Eden District Council,http://opendatacommunities.org/id/district-council/eden,Technical Services Manager,Cemeteries,ADHOC WORKS FOR BURIALS,URBASER LIMITED,URB002,24/12/2021,199157,2210.64,GM CONTRACT BURIALS JULY21
Eden District Council,http://opendatacommunities.org/id/district-council/eden,Technical Services Manager,Cemeteries,ADHOC WORKS FOR BURIALS,URBASER LIMITED,URB002,24/12/2021,199159,893.74,GM CONTRACT BURIALS AUG 21
Eden District Council,http://opendatacommunities.org/id/district-council/eden,Legal Services Manager,Register of Electors,Printing and stationary,PRINT IMAGE NETWORK LTD,PRI011,24/12/2021,199165,733.78,EDEN ITR2021
Eden District Council,http://opendatacommunities.org/id/district-council/eden,Technical Services Manager,Cemeteries,Memorial Plaque Charges,URBASER LIMITED,URB002,24/12/2021,199217,1077.98,GM CONTRACT AD HOC AUG 21
Eden District Council,http://opendatacommunities.org/id/district-council/eden,Technical Services Manager,Cemeteries,ADHOC WORKS FOR BURIALS,URBASER LIMITED,URB002,24/12/2021,199218,2070.23,GM CONTRACT BURIALS SEPT 21
Eden District Council,http://opendatacommunities.org/id/district-council/eden,Planning Services,Development Control & Enforcement,Charges for services,Alston Construction,SAB001,24/12/2021,199232,1614,REFUND APP 21/0791
Eden District Council,http://opendatacommunities.org/id/district-council/eden,Planning Services,Environmental Enhancement & Conservation,Professional fees,CAPITA PROPERTY & INFRASTRUCTURE LTD,CAP002,24/12/2021,199011,2616.8,ARBORICULTURAL SERVICES SEPT21
Eden District Council,http://opendatacommunities.org/id/district-council/eden,Commercial Services Manager,Commercial Services,Agency Staff,VIVID RESOURCING,VIV001,24/12/2021,199053,2750,TIME SHEET WE 05.12.21 GM
Eden District Council,http://opendatacommunities.org/id/district-council/eden,Financial Services Manager,Corporate Costs,Bank charges,Barclays Merchant services,BMS001,10/12/2021,222626,1651.07,Merchant Services Charges
